[Event "FIDE World Senior-50 CC 2023"]
[Site "Terrasini"]
[Date "2023.10.28"]
[Round "4.19"]
[White "Fabiano, Giuseppe"]
[Black "Boulard, Eric"]
[Result "0-1"]
[ECO "D30"]
[WhiteElo "2030"]
[BlackElo "2181"]
[Annotator "ChessBase"]
[PlyCount "134"]
[EventDate "2023.10.22"]
[EventType "swiss"]
[EventCountry "ITA"]
[SourceTitle "playchess.com"]
[Source "ChessBase"]
[SourceQuality "1"]
[TimeControl "40/5400+30:1800+30"]

1. d4 {[%emt 0:00:05]} d5 {[%emt 0:00:08]} 2. c4 {[%emt 0:00:07]} e6 {[%emt 0:00:10]} 3. Nf3 {[%emt 0:00:07]} Nf6 {[%emt 0:00:12]} 4. Bg5 {[%emt 0:00:17]} dxc4 {[%emt 0:02:37]} 5. Qa4+ {[%emt 0:00:30]} Nbd7 {[%emt 0:02:33]} 6. e3 {[%emt 0:00:15]} a6 {[%emt 0:03:48]} 7. Bxc4 {[%emt 0:00:18]} Be7 {[%emt 0:02:01]} 8. Nbd2 {[%emt 0:01:41]} O-O {[%emt 0:00:23]} 9. Qc2 {[%emt 0:00:40]} c5 {[%emt 0:02:37]} 10. a4 {[%emt 0:05:31]} h6 {[%emt 0:02:29]} 11. Bh4 {[%emt 0:01:00]} cxd4 {[%emt 0:07:20]} 12. Nxd4 {[%emt 0:02:24]} Ne5 {[%emt 0:09:29]} 13. Be2 {[%emt 0:03:28]} Nd5 {[%emt 0:10:22]} 14. Bxe7 {[%emt 0:00:16]} Qxe7 {[%emt 0:00:33]} 15. O-O {[%emt 0:01:19]} Bd7 {[%emt 0:10:21]} 16. N2f3 {[%emt 0:06:26]} Nb4 {[%emt 0:08:04]} 17. Qb3 {[%emt 1:14:36]} Nec6 {[%emt 0:02:20]} 18. Rfd1 {[%emt 0:00:00]} Rfd8 {[%emt 0:08:16]} 19. a5 {[%emt 0:00:00]} Rac8 {[%emt 0:03:11]} 20. Qa3 {[%emt 0:00:00]} Qf8 {[%emt 0:09:13]} 21. Rac1 {[%emt 0:00:00]} Be8 {[%emt 0:05:49]} 22. Nb3 {[%emt 0:00:00]} Rxd1+ {[%emt 0:01:31]} 23. Bxd1 {[%emt 0:00:00]} Nd3 {[%emt 0:02:27]} 24. Qxf8+ {[%emt 0:00:00]} Kxf8 {[%emt 0:00:05]} 25. Rc2 {[%emt 0:00:00]} Rd8 {[%emt 0:02:58]} 26. Be2 {[%emt 0:00:00]} Ndb4 {[%emt 0:00:30]} 27. Rc4 {[%emt 0:00:00]} Nd3 {[%emt 0:00:43]} 28. Rc2 {[%emt 0:00:00]} Ke7 {[%emt 0:00:46]} 29. Nfd4 {[%emt 0:00:00]} Ndb4 {[%emt 0:00:59]} 30. Rd2 {[%emt 0:00:00]} e5 {[%emt 0:01:02]} 31. Nf5+ {[%emt 0:00:00]} Kf6 {[%emt 0:00:44]} 32. Nd6 {[%emt 0:00:54]} Rb8 {[%emt 0:01:05]} 33. Bc4 {[%emt 0:07:06]} g6 {[%emt 0:00:29]} 34. h4 {[%emt 0:00:00]} Ke7 {[%emt 0:00:37]} 35. g4 {[%emt 0:00:00]} Nd4 {[%emt 0:00:57]} 36. exd4 {[%emt 0:00:00]} Kxd6 {[%emt 0:00:10]} 37. dxe5+ {[%emt 0:00:11]} Kxe5 {[%emt 0:00:07]} 38. Re2+ {[%emt 0:00:57]} Kf4 {[%emt 0:00:42]} 39. Nd4 {[%emt 0:00:22]} Nc6 {[%emt 0:01:02]} 40. Nb3 {[%emt 0:00:31]} Kxg4 {[%emt 0:00:34]} 41. Re4+ {[%emt 0:30:34]} Kf5 {[%emt 0:03:45]} 42. f3 {[%emt 0:00:00]} Rd8 {[%emt 0:03:23]} 43. Be2 {[%emt 0:00:00]} Ne5 {[%emt 0:07:34]} 44. Rb4 {[%emt 0:00:00]} Bc6 {[%emt 0:01:11]} 45. Nd4+ {[%emt 0:00:00]} Rxd4 {[%emt 0:03:37]} 46. Rxd4 {[%emt 0:00:00]} Nxf3+ {[%emt 0:00:12]} 47. Bxf3 {[%emt 0:00:00]} Bxf3 {[%emt 0:00:11]} 48. Kf2 {[%emt 0:00:00]} Bc6 {[%emt 0:00:12]} 49. Kg3 {[%emt 0:00:00]} g5 {[%emt 0:04:19]} 50. Rc4 {[%emt 0:00:00]} Kg6 {[%emt 0:00:57]} 51. Rd4 {[%emt 0:00:00]} f5 {[%emt 0:00:31]} 52. hxg5 {[%emt 0:00:00]} hxg5 {[%emt 0:00:08]} 53. Rd8 {[%emt 0:00:00]} Kf6 {[%emt 0:03:51]} 54. Rd6+ {[%emt 0:00:00]} Ke5 {[%emt 0:00:35]} 55. Rg6 {[%emt 0:08:25]} g4 {[%emt 0:02:26]} 56. Rg7 {[%emt 0:00:00]} Be4 {[%emt 0:01:11]} 57. Rc7 {[%emt 0:00:00]} Bd5 {[%emt 0:01:01]} 58. Rc8 {[%emt 0:00:00]} f4+ {[%emt 0:00:13]} 59. Kh4 {[%emt 0:00:00]} g3 {[%emt 0:00:39]} 60. Re8+ {[%emt 0:00:00]} Be6 {[%emt 0:00:44]} 61. Re7 {[%emt 0:00:00]} g2 {[%emt 0:02:23]} 62. Rg7 {[%emt 0:00:00]} Bd5 {[%emt 0:00:23]} 63. Rg5+ {[%emt 0:00:00]} Kd4 {[%emt 0:00:31]} 64. Kh3 {[%emt 0:00:00]} Ke3 {[%emt 0:00:18]} 65. Kh2 {[%emt 0:00:00]} Kf2 {[%emt 0:00:07]} 66. Rg7 {[%emt 0:00:00]} Kf1 {[%emt 0:00:39]} 67. Rg5 {[%emt 0:00:00]} f3 {[%emt 0:00:16]} 0-1

[Event "FIDE World Senior-50 CC 2023"]
[Site "Terrasini"]
[Date "2023.10.29"]
[Round "5.1"]
[White "Atalik, Suat"]
[Black "Morovic Fernandez, Ivan"]
[Result "1/2-1/2"]
[ECO "D10"]
[WhiteElo "2427"]
[BlackElo "2488"]
[Annotator "RC"]
[PlyCount "46"]
[EventDate "2023.10.22"]
[EventType "swiss"]
[EventCountry "ITA"]
[SourceTitle "playchess.com"]
[Source "ChessBase"]
[SourceQuality "1"]
[TimeControl "40/5400+30:1800+30"]

1. d4 {[%emt 0:00:05]} d5 {[%emt 0:00:09]} 2. c4 {[%emt 0:00:21]} c6 {[%emt 0:00:10]} 3. cxd5 {[%emt 0:01:12]} cxd5 {[%emt 0:00:19]} 4. Bf4 {[%emt 0:00:35]} Nc6 {[%emt 0:01:40]} 5. e3 {[%emt 0:00:24]} Nf6 {[%emt 0:00:37]} 6. Nc3 {[%emt 0:00:23]} Bg4 {[%emt 0:04:05]} 7. Qb3 {[%emt 0:03:43]} Na5 {[%emt 0:00:51]} 8. Qa4+ {[%emt 0:00:13]} Bd7 {[%emt 0:00:16]} 9. Qd1 {[%emt 0:04:57]} Rc8 {[%emt 0:05:11]} 10. Bd3 {[%emt 0:03:47]} e6 {[%emt 0:07:06]} 11. a3 {[%emt 0:03:35]} Qb6 {[%emt 0:10:06]} 12. Rb1 {[%emt 0:01:42]} Nc4 {[%emt 0:02:52]} 13. Bxc4 {[%emt 0:00:27]} Rxc4 {[%emt 0:00:05]} 14. Nf3 {[%emt 0:03:43]} Rc8 {[%emt 0:05:40]} 15. Ne5 {[%emt 0:06:26]} Be7 {[%emt 0:08:14]} 16. Bg5 {[%emt 0:16:53]} Bc6 {[%emt 0:01:04]} 17. O-O {[%emt 0:01:12]} O-O {[%emt 0:01:52]} 18. Ng4 {[%emt 0:09:03]} Nxg4 {[%emt 0:02:19]} 19. Bxe7 {[%emt 0:02:35]} Qc7 {[%emt 0:00:03]} 20. Qxg4 {[%emt 0:00:07]} Qxe7 {[%emt 0:00:03]} 21. Rfc1 {[%emt 0:00:49]} Rc7 {[%emt 0:02:26]} 22. Na2 {[%emt 0:03:49]} Rfc8 {[%emt 0:05:20]} 23. Rc3 {[%emt 0:03:25]} Bb5 {[%emt 0:12:34]} 1/2-1/2

[Event "FIDE World Senior-50 CC 2023"]
[Site "Terrasini"]
[Date "2023.10.29"]
[Round "5.2"]
[White "Prasad, Devaki V"]
[Black "Adams, Michael"]
[Result "0-1"]
[ECO "C54"]
[WhiteElo "2200"]
[BlackElo "2670"]
[Annotator "TA"]
[PlyCount "70"]
[EventDate "2023.10.22"]
[EventType "swiss"]
[EventCountry "ITA"]
[SourceTitle "playchess.com"]
[Source "ChessBase"]
[SourceQuality "1"]
[TimeControl "40/5400+30:1800+30"]

{[%evp 9,70,18,20,15,14,20,32,18,17,16,28,29,41,53,18,28,28,19,36,27,35,25,54,51,53,63,60,50,65,45,51,31,42,27,27,25,27,13,27,0,29,16,12,0,0,-22,0,-52,0,-106,-92,-94,-100,-195,-187,-223,-170,-168,-167,-156,-154,-162,-157]} 1. e4 {[%emt 0:00:07]} e5 {[%emt 0:00:05]} 2. Nf3 {[%emt 0:00:11]} Nc6 {[%emt 0:00:06]} 3. Bc4 {[%emt 0:00:19]} Nf6 {[%emt 0:00:08]} 4. d3 {[%emt 0:00:15]} Bc5 {[%emt 0:00:11]} 5. c3 {[%emt 0:00:18]} a6 {[%emt 0:00:13]} ({Don't play} 5... d5 6. exd5 Nxd5 7. Qb3 $14) 6. a4 {[%emt 0:00:09] C54: Giuoco Piano: 4 c3 Nf6, main lines with 5 d4 and 5 d3.} d6 $1 {[%emt 0:00:35] The main line 6...d6 scores better than 6...Ba7.} 7. O-O {[%emt 0:00:20]} Ba7 {[%emt 0:00:04]} 8. Re1 {[%emt 0:01:23] White is slightly better.} Ng4 {[%emt 0:00:19]} 9. Re2 {[%emt 0:00:28]} Qf6 {[%emt 0:00:13]} 10. b4 {[%emt 0:08:26]} O-O {[%emt 0:04:47] [#]} 11. h3 $146 {[%emt 0:12:51]} ({Predecessor:} 11. Nbd2 Qg6 12. Nf1 Kh8 13. Ng3 Be6 14. Rb2 b5 15. Bxe6 fxe6 16. Nh4 Qf6 17. Qxg4 Bxf2+ {½-½ Antipov,M (2549)-Adhiban,B (2654) Wch Blitz Moscow 2019 (9)}) 11... Nh6 {[%emt 0:00:12]} 12. Be3 {[%emt 0:02:09]} Qg6 {[%emt 0:08:06]} 13. Kh1 {[%emt 0:09:15]} Kh8 {[%emt 0:02:46]} 14. Bxa7 {[%emt 0:02:30]} Rxa7 {[%emt 0:01:39]} 15. Nbd2 {[%emt 0:00:51]} Nd8 {[%emt 0:16:05]} 16. d4 {[%emt 0:04:15]} Ne6 {[%emt 0:00:58]} 17. Bxe6 {[%emt 0:00:40]} ({Of course not} 17. dxe5 Nf4 18. Qf1 Nxe2 19. Qxe2 dxe5 $11) 17... Qxe6 {[%emt 0:00:05]} 18. Nf1 {[%emt 0:00:48]} f6 {[%emt 0:14:23]} 19. a5 {[%emt 0:00:39]} Qf7 {[%emt 0:03:35]} 20. Ng3 {[%emt 0:15:38]} Ra8 {[%emt 0:01:45]} 21. Qd2 {[%emt 0:01:30]} Be6 {[%emt 0:01:24]} 22. Ree1 {[%emt 0:02:00]} Rad8 {[%emt 0:05:31]} 23. Qe3 {[%emt 0:05:37]} Rde8 {[%emt 0:01:41]} 24. Qd2 {[%emt 0:04:41]} Ng8 {[%emt 0:01:11][%cal Bh6g8,Bg8e7,Be7g6][%mdl 32]} 25. Rad1 {[%emt 0:02:42]} (25. d5 $5 {[%cal Rd5e6]} Bd7 26. c4 $11) 25... Ne7 {[%emt 0:00:44]} 26. Qe3 {[%emt 0:03:45]} Ng6 {[%emt 0:03:45]} 27. Ne2 {[%emt 0:00:28]} h6 {[%emt 0:01:25]} (27... Bb3 $5 {[%cal Rb3d1]} 28. Rc1 Bc4 $11) 28. Kg1 {[%emt 0:01:47]} (28. Ng3 $11) 28... Bb3 {[%emt 0:02:05]} ({Black should try} 28... f5 $15 29. d5 Bd7) 29. Rb1 {[%emt 0:07:22] [#]} (29. Rc1 $11) 29... Bc2 $1 $17 {[%emt 0:03:15][%cal Bb3c2,Bc2e4,Be4c6][%mdl 32]} 30. Rbc1 {[%emt 0:00:07]} exd4 {[%emt 0:00:52]} 31. Nexd4 {[%emt 0:00:28]} (31. Qxd4 $17 {keeps fighting.} Bxe4 32. Nd2) 31... Bxe4 $19 {[%emt 0:27:52] Black is clearly better.} ({Not} 31... Rxe4 32. Qd2 Rxe1+ 33. Rxe1 $17) 32. c4 {[%emt 0:02:38]} c5 {[%emt 0:00:00]} 33. bxc5 {[%emt 0:00:09]} dxc5 {[%emt 0:00:00]} 34. Ne2 {[%emt 0:00:16]} Bc6 {[%emt 0:00:00]} 35. Qc3 {[%emt 0:01:49]} Rd8 {[%emt 0:00:00] Weighted Error Value: White=0.19 (very precise) /Black=0.09 (flawless)} 0-1

[Event "FIDE World Senior-50 CC 2023"]
[Site "Terrasini"]
[Date "2023.10.29"]
[Round "5.3"]
[White "Stefansson, Hannes"]
[Black "Novik, Maxim"]
[Result "1-0"]
[ECO "B42"]
[WhiteElo "2529"]
[BlackElo "2375"]
[Annotator "RC"]
[PlyCount "93"]
[EventDate "2023.10.22"]
[EventType "swiss"]
[EventCountry "ITA"]
[SourceTitle "playchess.com"]
[Source "ChessBase"]
[SourceQuality "1"]
[TimeControl "40/5400+30:1800+30"]

1. e4 {[%emt 0:00:11]} c5 {[%emt 0:00:16]} 2. Nf3 {[%emt 0:00:31]} e6 {[%emt 0:00:17]} 3. d4 {[%emt 0:00:50]} cxd4 {[%emt 0:00:06]} 4. Nxd4 {[%emt 0:00:15]} a6 {[%emt 0:00:07]} 5. Bd3 {[%emt 0:04:12]} Nf6 {[%emt 0:02:47]} 6. O-O {[%emt 0:02:07]} Qc7 {[%emt 0:00:03]} 7. Qe2 {[%emt 0:06:03]} d6 {[%emt 0:00:13]} 8. c4 {[%emt 0:00:47]} g6 {[%emt 0:00:10]} 9. Nc3 {[%emt 0:02:06]} Bg7 {[%emt 0:02:31]} 10. Rd1 {[%emt 0:02:16]} O-O {[%emt 0:00:19]} 11. Nf3 {[%emt 0:00:51]} Nc6 {[%emt 0:03:45]} 12. h3 {[%emt 0:00:36]} Nd7 {[%emt 0:00:59]} 13. Be3 {[%emt 0:10:59]} b6 {[%emt 0:04:40]} 14. Rac1 {[%emt 0:00:47]} Nce5 {[%emt 0:00:06]} 15. Nxe5 {[%emt 0:02:30]} Nxe5 {[%emt 0:01:22]} 16. b3 {[%emt 0:01:53]} Bb7 {[%emt 0:04:56]} 17. Qd2 {[%emt 0:03:24]} Rfe8 {[%emt 0:03:56]} 18. Bf1 {[%emt 0:07:48]} Bf8 {[%emt 0:00:37]} 19. f4 {[%emt 0:03:46]} Nd7 {[%emt 0:03:50]} 20. e5 {[%emt 0:00:25]} Rad8 {[%emt 0:06:43]} 21. exd6 {[%emt 0:00:52]} Qc6 {[%emt 0:00:48]} 22. b4 {[%emt 0:04:38]} Nb8 {[%emt 0:03:22]} 23. c5 {[%emt 0:01:52]} bxc5 {[%emt 0:00:25]} 24. bxc5 {[%emt 0:00:09]} Nd7 {[%emt 0:00:05]} 25. Ne2 {[%emt 0:03:07]} e5 {[%emt 0:01:05]} 26. fxe5 {[%emt 0:01:45]} Nxe5 {[%emt 0:02:41]} 27. Nd4 {[%emt 0:00:20]} Qe4 {[%emt 0:00:10]} 28. Re1 {[%emt 0:01:36]} Rc8 {[%emt 0:08:58]} 29. Bf4 {[%emt 0:04:42]} Qd5 {[%emt 0:00:15]} 30. Bxe5 {[%emt 0:01:04]} Rxe5 {[%emt 0:00:03]} 31. Rxe5 {[%emt 0:00:26]} Qxe5 {[%emt 0:00:01]} 32. d7 {[%emt 0:00:56]} Rd8 {[%emt 0:08:55]} 33. c6 {[%emt 0:02:46]} Bc5 {[%emt 0:00:25]} 34. Rxc5 {[%emt 0:02:40]} Qxc5 {[%emt 0:00:02]} 35. cxb7 {[%emt 0:00:10]} Qd6 {[%emt 0:00:31]} 36. Qb2 {[%emt 0:01:38]} Rb8 {[%emt 0:02:01]} 37. Bxa6 {[%emt 0:05:11]} Qxd7 {[%emt 0:00:23]} 38. Qb6 {[%emt 0:01:38]} h5 {[%emt 0:03:53]} 39. Qc5 {[%emt 0:03:04]} Kh7 {[%emt 0:00:54]} 40. Nc6 {[%emt 0:04:26]} Qd1+ {[%emt 0:04:52]} 41. Kh2 {[%emt 0:30:21]} Re8 {[%emt 0:30:04]} 42. b8=Q {[%emt 0:03:06]} Re1 {[%emt 0:00:02]} 43. Qf4 {[%emt 0:00:46]} Rh1+ {[%emt 0:01:02]} 44. Kg3 {[%emt 0:00:10]} Qe1+ {[%emt 0:01:12]} 45. Qcf2 {[%emt 0:01:04]} Qc3+ {[%emt 0:00:03]} 46. Kh4 {[%emt 0:00:48]} g5+ {[%emt 0:01:16]} 47. Qxg5 {[%emt 0:00:31]} 1-0

[Event "FIDE World Senior-50 CC 2023"]
[Site "Terrasini"]
[Date "2023.10.29"]
[Round "5.4"]
[White "Vlassov, Nikolai"]
[Black "Dlugy, Maxim"]
[Result "1/2-1/2"]
[ECO "B22"]
[WhiteElo "2283"]
[BlackElo "2520"]
[Annotator "RC"]
[PlyCount "140"]
[EventDate "2023.10.22"]
[EventType "swiss"]
[EventCountry "ITA"]
[SourceTitle "playchess.com"]
[Source "ChessBase"]
[SourceQuality "1"]
[TimeControl "40/5400+30:1800+30"]

1. e4 {[%emt 0:00:01]} c5 {[%emt 0:00:11]} 2. c3 {[%emt 0:00:06]} d5 {[%emt 0:00:04]} 3. exd5 {[%emt 0:00:05]} Qxd5 {[%emt 0:00:03]} 4. d4 {[%emt 0:00:07]} g6 {[%emt 0:00:28]} 5. Na3 {[%emt 0:01:10]} cxd4 {[%emt 0:11:10]} 6. Nb5 {[%emt 0:01:09]} Na6 {[%emt 0:00:12]} 7. Qxd4 {[%emt 0:00:42]} Qxd4 {[%emt 0:07:07]} 8. Nxd4 {[%emt 0:00:37]} Nc5 {[%emt 0:08:44]} 9. b4 {[%emt 0:06:37]} Ne4 {[%emt 0:02:10]} 10. Nb5 {[%emt 0:05:41]} Bg7 {[%emt 0:00:05]} 11. Ne2 {[%emt 0:05:51]} Kf8 {[%emt 0:06:49]} 12. f3 {[%emt 0:11:34]} Bd7 {[%emt 0:03:12]} 13. fxe4 {[%emt 0:01:45]} Bxb5 {[%emt 0:00:04]} 14. Nd4 {[%emt 0:02:20]} Bxf1 {[%emt 0:07:11]} 15. Rxf1 {[%emt 0:04:19]} Nf6 {[%emt 0:00:09]} 16. e5 {[%emt 0:02:00]} Nd5 {[%emt 0:01:29]} 17. e6 {[%emt 0:03:16]} f5 {[%emt 0:00:43]} 18. Bb2 {[%emt 0:04:43]} Bxd4 {[%emt 0:12:18]} 19. cxd4 {[%emt 0:00:03]} Nxb4 {[%emt 0:00:03]} 20. Kd2 {[%emt 0:01:44]} Nd5 {[%emt 0:00:09]} 21. g4 {[%emt 0:06:54]} f4 {[%emt 0:00:48]} 22. Rae1 {[%emt 0:00:16]} Kg7 {[%emt 0:08:48]} 23. Re5 {[%emt 0:00:42]} Rad8 {[%emt 0:00:24]} 24. Kd3 {[%emt 0:01:23]} Rhf8 {[%emt 0:00:36]} 25. Ke4 {[%emt 0:07:40]} Ne3 {[%emt 0:00:38]} 26. Rc1 {[%emt 0:08:31]} Nxg4 {[%emt 0:01:01]} 27. Rb5 {[%emt 0:00:36]} Nf2+ {[%emt 0:02:26]} 28. Kf3 {[%emt 0:00:03]} Nd3 {[%emt 0:00:03]} 29. Rc7 {[%emt 0:00:19]} Nxb2 {[%emt 0:09:36]} 30. Rxe7+ {[%emt 0:01:41]} Kf6 {[%emt 0:00:03]} 31. Rexb7 {[%emt 0:00:12]} Rxd4 {[%emt 0:00:27]} 32. Rxb2 {[%emt 0:00:16]} Kxe6 {[%emt 0:04:16]} 33. Rxa7 {[%emt 0:01:19]} Rd3+ {[%emt 0:01:05]} 34. Kf2 {[%emt 0:03:44]} Kf5 {[%emt 0:02:27]} 35. Rxh7 {[%emt 0:00:34]} Rfd8 {[%emt 0:00:04]} 36. Rb5+ {[%emt 0:10:03]} R8d5 {[%emt 0:02:09]} 37. Rf7+ {[%emt 0:05:07]} Kg4 {[%emt 0:02:25]} 38. h3+ {[%emt 0:01:01]} Kg5 {[%emt 0:00:12]} 39. h4+ {[%emt 0:00:39]} Kg4 {[%emt 0:00:26]} 40. Rxd5 {[%emt 0:00:08]} Rxd5 {[%emt 0:00:02]} 41. Rf6 {[%emt 0:30:13]} Rd2+ {[%emt 0:30:41]} 42. Ke1 {[%emt 0:00:16]} Rxa2 {[%emt 0:00:28]} 43. Rxg6+ {[%emt 0:00:08]} Kf3 {[%emt 0:00:03]} 44. h5 {[%emt 0:00:29]} Re2+ {[%emt 0:00:25]} 45. Kd1 {[%emt 0:00:00]} Rh2 {[%emt 0:00:00]} 46. h6 {[%emt 0:00:00]} Kf2 {[%emt 0:00:00]} 47. Ra6 {[%emt 0:00:00]} Rh5 {[%emt 0:00:00]} 48. Rd6 {[%emt 0:00:00]} f3 {[%emt 0:00:00]} 49. Kd2 {[%emt 0:00:00]} Rh3 {[%emt 0:00:00]} 50. Rf6 {[%emt 0:00:00]} Rh5 {[%emt 0:00:00]} 51. Rd6 {[%emt 0:00:00]} Kf1 {[%emt 0:00:00]} 52. Rf6 {[%emt 0:00:00]} f2 {[%emt 0:00:00]} 53. Rd6 {[%emt 0:00:00]} Rh2 {[%emt 0:00:00]} 54. Rg6 {[%emt 0:00:00]} Rh3 {[%emt 0:00:00]} 55. Rf6 {[%emt 0:00:00]} Rh4 {[%emt 0:00:00]} 56. Rg6 {[%emt 0:00:00]} Rd4+ {[%emt 0:01:35]} 57. Kc2 {[%emt 0:00:00]} Ke2 {[%emt 0:03:37]} 58. Re6+ {[%emt 0:00:00]} Kf3 {[%emt 0:00:03]} 59. Rf6+ {[%emt 0:00:00]} Kg2 {[%emt 0:00:05]} 60. Rg6+ {[%emt 0:00:00]} Kh1 {[%emt 0:00:42]} 61. Rf6 {[%emt 0:00:00]} Kg2 {[%emt 0:00:52]} 62. Rg6+ {[%emt 0:00:00]} Kh3 {[%emt 0:00:18]} 63. Rf6 {[%emt 0:00:00]} Kg3 {[%emt 0:00:56]} 64. Rg6+ {[%emt 0:00:00]} Kf3 {[%emt 0:00:34]} 65. Rf6+ {[%emt 0:00:00]} Ke2 {[%emt 0:00:06]} 66. Re6+ {[%emt 0:00:00]} Kf1 {[%emt 0:00:03]} 67. h7 {[%emt 0:00:00]} Rh4 {[%emt 0:00:06]} 68. Re7 {[%emt 0:00:00]} Kg2 {[%emt 0:00:24]} 69. Rg7+ {[%emt 0:00:00]} Kh1 {[%emt 0:00:06]} 70. Rf7 {[%emt 0:00:00]} Kg2 {[%emt 0:01:23]} 1/2-1/2

[Event "FIDE World Senior-50 CC 2023"]
[Site "Terrasini"]
[Date "2023.10.29"]
[Round "5.5"]
[White "Sturua, Zurab"]
[Black "Paschall, William"]
[Result "1-0"]
[ECO "E12"]
[WhiteElo "2514"]
[BlackElo "2329"]
[Annotator "RC"]
[PlyCount "77"]
[EventDate "2023.10.22"]
[EventType "swiss"]
[EventCountry "ITA"]
[SourceTitle "playchess.com"]
[Source "ChessBase"]
[SourceQuality "1"]
[TimeControl "40/5400+30:1800+30"]

1. d4 {[%emt 0:00:09]} Nf6 {[%emt 0:01:35]} 2. c4 {[%emt 0:00:15]} e6 {[%emt 0:00:59]} 3. Nf3 {[%emt 0:00:56]} b6 {[%emt 0:01:14]} 4. a3 {[%emt 0:01:46]} Bb7 {[%emt 0:01:45]} 5. Nc3 {[%emt 0:00:12]} g6 {[%emt 0:01:18]} 6. d5 {[%emt 0:04:04]} exd5 {[%emt 0:08:48]} 7. cxd5 {[%emt 0:00:12]} Bg7 {[%emt 0:01:21]} 8. Bf4 {[%emt 0:05:47]} O-O {[%emt 0:03:09]} 9. e3 {[%emt 0:00:22]} c6 {[%emt 0:07:45]} 10. d6 {[%emt 0:05:25]} a5 {[%emt 0:05:19]} 11. Be2 {[%emt 0:18:33]} Na6 {[%emt 0:06:52]} 12. O-O {[%emt 0:02:28]} Nc5 {[%emt 0:04:07]} 13. Qc2 {[%emt 0:01:56]} Qe8 {[%emt 0:06:42]} 14. Nd2 {[%emt 0:04:57]} Ba6 {[%emt 0:04:05]} 15. Bxa6 {[%emt 0:05:06]} Rxa6 {[%emt 0:01:14]} 16. e4 {[%emt 0:08:34]} Qe6 {[%emt 0:04:02]} 17. Rad1 {[%emt 0:12:11]} a4 {[%emt 0:11:19]} 18. h3 {[%emt 0:01:23]} Re8 {[%emt 0:01:52]} 19. Rfe1 {[%emt 0:02:39]} Nh5 {[%emt 0:05:27]} 20. Bh2 {[%emt 0:01:01]} Be5 {[%emt 0:08:59]} 21. Bxe5 {[%emt 0:00:38]} Qxe5 {[%emt 0:00:07]} 22. Nf3 {[%emt 0:00:16]} Qg7 {[%emt 0:13:31]} 23. e5 {[%emt 0:03:00]} f5 {[%emt 0:00:00]} 24. exf6 {[%emt 0:03:48]} Nxf6 {[%emt 0:00:00]} 25. Rxe8+ {[%emt 0:02:43]} Nxe8 {[%emt 0:00:00]} 26. Ne4 {[%emt 0:00:39]} Ra5 {[%emt 0:00:00]} 27. Nxc5 {[%emt 0:04:16]} bxc5 {[%emt 0:00:00]} 28. Re1 {[%emt 0:02:04]} Ra8 {[%emt 0:00:59]} 29. Re7 {[%emt 0:05:28]} Qf6 {[%emt 0:00:15]} 30. Rxd7 {[%emt 0:00:47]} Nxd6 {[%emt 0:01:29]} 31. Qxc5 {[%emt 0:00:23]} Nf7 {[%emt 0:00:24]} 32. Qc4 {[%emt 0:00:05]} Rf8 {[%emt 0:00:19]} 33. Rb7 {[%emt 0:01:41]} Kh8 {[%emt 0:00:41]} 34. Qxa4 {[%emt 0:00:41]} Nd6 {[%emt 0:00:39]} 35. Rd7 {[%emt 0:00:38]} Nb5 {[%emt 0:00:40]} 36. Qe4 {[%emt 0:00:56]} Qxb2 {[%emt 0:01:01]} 37. Qe7 {[%emt 0:00:32]} Qc1+ {[%emt 0:00:13]} 38. Ne1 {[%emt 0:00:50]} Qh6 {[%emt 0:00:11]} 39. a4 {[%emt 0:00:25]} 1-0

[Event "FIDE World Senior-50 CC 2023"]
[Site "Terrasini"]
[Date "2023.10.29"]
[Round "5.6"]
[White "Degraeve, Jean-Marc"]
[Black "Estremera Panos, Sergio"]
[Result "1-0"]
[ECO "C55"]
[WhiteElo "2479"]
[BlackElo "2232"]
[Annotator "RC"]
[PlyCount "83"]
[EventDate "2023.10.22"]
[EventType "swiss"]
[EventCountry "ITA"]
[SourceTitle "playchess.com"]
[Source "ChessBase"]
[SourceQuality "1"]
[TimeControl "40/5400+30:1800+30"]

1. e4 {[%emt 0:02:38]} e5 {[%emt 0:00:12]} 2. Nf3 {[%emt 0:00:42]} Nc6 {[%emt 0:00:12]} 3. Bc4 {[%emt 0:00:14]} Nf6 {[%emt 0:00:34]} 4. d3 {[%emt 0:00:07]} Be7 {[%emt 0:00:33]} 5. O-O {[%emt 0:02:10]} O-O {[%emt 0:00:31]} 6. Nc3 {[%emt 0:00:13]} d6 {[%emt 0:01:18]} 7. a4 {[%emt 0:00:07]} Be6 {[%emt 0:06:31]} 8. Nd5 {[%emt 0:03:02]} Bxd5 {[%emt 0:01:18]} 9. exd5 {[%emt 0:00:09]} Nb4 {[%emt 0:00:38]} 10. d4 {[%emt 0:00:40]} e4 {[%emt 0:12:55]} 11. Nd2 {[%emt 0:01:35]} Nbxd5 {[%emt 0:30:17]} 12. Nxe4 {[%emt 0:00:20]} Nb4 {[%emt 0:00:34]} 13. Nxf6+ {[%emt 0:04:08]} Bxf6 {[%emt 0:00:06]} 14. c3 {[%emt 0:00:16]} d5 {[%emt 0:00:53]} 15. Be2 {[%emt 0:03:30]} Nc6 {[%emt 0:00:35]} 16. a5 {[%emt 0:00:16]} a6 {[%emt 0:01:26]} 17. Qb3 {[%emt 0:01:56]} Rb8 {[%emt 0:07:42]} 18. Bf3 {[%emt 0:01:07]} Ne7 {[%emt 0:01:11]} 19. Bf4 {[%emt 0:01:09]} Qd7 {[%emt 0:05:24]} 20. Rfe1 {[%emt 0:04:37]} Rfd8 {[%emt 0:02:10]} 21. Bg3 {[%emt 0:02:18]} g6 {[%emt 0:03:29]} 22. h3 {[%emt 0:08:41]} h5 {[%emt 0:00:34]} 23. Re2 {[%emt 0:10:03]} Kg7 {[%emt 0:00:23]} 24. Rae1 {[%emt 0:00:12]} Nf5 {[%emt 0:01:03]} 25. Be5 {[%emt 0:00:05]} Nh4 {[%emt 0:02:05]} 26. Bxf6+ {[%emt 0:01:13]} Kxf6 {[%emt 0:00:02]} 27. Re3 {[%emt 0:00:23]} c6 {[%emt 0:01:42]} 28. Be2 {[%emt 0:01:02]} Nf5 {[%emt 0:07:07]} 29. Re5 {[%emt 0:00:50]} Nd6 {[%emt 0:00:14]} 30. Qd1 {[%emt 0:01:18]} Rh8 {[%emt 0:01:36]} 31. Bd3 {[%emt 0:02:12]} Rbe8 {[%emt 0:00:15]} 32. f4 {[%emt 0:05:06]} Kg7 {[%emt 0:01:54]} 33. f5 {[%emt 0:02:45]} Rxe5 {[%emt 0:00:45]} 34. f6+ {[%emt 0:00:40]} Kf8 {[%emt 0:02:41]} 35. Rxe5 {[%emt 0:06:41]} Ne8 {[%emt 0:01:11]} 36. Re7 {[%emt 0:00:32]} Qd6 37. Rxb7 {[%emt 0:00:15]} Nxf6 38. Qe2 {[%emt 0:03:07]} Nd7 {[%emt 0:05:54]} 39. Bxa6 {[%emt 0:00:35]} Kg7 {[%emt 0:04:05]} 40. Bd3 {[%emt 0:00:14]} Rd8 {[%emt 0:00:00]} 41. a6 {[%emt 0:30:15]} c5 {[%emt 0:30:16]} 42. Bb5 {[%emt 0:01:30]} 1-0